bitfinex-derivatives/quotes_ETHF0:USTF0_20240826
["timestamp","ask_amount","ask_price","bid_price","bid_amount"]
[1724689077594,0.69275574,2721.8,2721.5,13.30481]
[1724689077797,0.69275574,2721.8,2721.7,0.36729]
[1724689078393,3.98967197,2722.0,2721.8,0.36728]
[1724689079499,3.62241197,2722.0,2721.8,0.36728]
[1724689080603,3.98967197,2722.0,2721.8,0.36728]
[1724689080806,3.62241197,2722.0,2721.8,0.36727]
[1724689081494,3.93483634,2722.0,2721.6,0.36731]
[1724689081800,0.36728,2721.8,2721.6,0.36731]
[1724689082007,1.841,2721.7,2721.5,0.36732]
[1724689082203,3.96711,2721.6,2721.4,3.57513]
[1724689082404,3.5998,2721.6,2721.5,0.36732]
[1724689083104,0.36727,2721.9,2721.8,0.36728]
[1724689083305,0.36727,2721.9,2721.7,0.36729]
[1724689083510,3.62241197,2722.0,2721.9,0.36727]
[1724689083710,9.29428112,2722.1,2722.0,0.36725]
[1724689083711,9.16921563,2722.1,2722.0,0.36725]
[1724689083916,5.4408,2722.1,2722.0,0.36725]
[1724689084094,14.44302982,2722.1,2722.0,0.36725]
[1724689084301,5.4408,2722.1,2722.0,0.36725]
[1724689084905,0.25622146,2722.2,2722.1,0.36724]
[1724689085209,3.83142146,2722.2,2722.1,0.36724]
[1724689085404,7.50502146,2722.2,2722.1,0.36724]
[1724689085904,7.50502146,2722.2,2722.0,0.36725]
[1724689086105,7.19259709,2722.2,2721.7,1.8391]
[1724689086305,0.36726,2722.0,2721.8,0.36728]
[1724689086603,7.19259709,2722.2,2721.9,0.36727]
[1724689086909,0.36724,2722.1,2721.9,0.36727]
[1724689087201,7.55983709,2722.2,2721.9,0.36727]
[1724689087406,0.36724,2722.1,2721.9,0.36727]
[1724689088007,0.36724,2722.1,2721.8,0.36727]
[1724689088304,0.36724,2722.1,2721.7,1.8391]
[1724689088305,0.36725,2722.1,2721.7,1.8391]
[1724689088506,7.85996284,2722.2,2721.8,0.36728]
[1724689089302,0.36726,2722.0,2721.8,0.36728]
[1724689089503,0.36725,2722.1,2721.8,0.36728]
[1724689089907,0.36725,2722.1,2721.8,3.57508]
[1724689090207,0.36726,2722.0,2721.8,3.57508]
[1724689091306,7.85996284,2722.2,2721.8,3.57508]
[1724689091500,0.36725,2722.0,2721.8,3.57508]
[1724689092011,0.36725,2722.1,2721.9,0.36726]
[1724689092200,6.94188284,2722.2,2721.8,3.2078]
[1724689092507,0.00550721,2722.2,2722.1,1.28535]
[1724689092710,0.00550721,2722.2,2722.1,5.38346]
[1724689092900,0.00550721,2722.2,2722.1,14.05706]
[1724689093100,0.00550721,2722.2,2722.1,13.13895]
[1724689093302,0.00550721,2722.2,2722.1,14.98805]
[1724689093512,0.00550721,2722.2,2722.1,14.06994]
[1724689093700,0.00550721,2722.2,2722.1,0.36724]
[1724689093900,0.36724,2722.1,2722.0,1.8402]
[1724689094202,0.36726,2722.0,2721.8,3.2078]
[1724689094417,0.36725,2722.1,2722.0,0.36725]
[1724689094903,0.36725,2722.0,2721.9,0.36726]
[1724689095104,0.36727,2721.9,2721.8,5.41527]
[1724689095299,0.36727,2721.9,2721.8,3.2078]
[1724689096221,1.28545,2721.9,2721.8,3.2078]
[1724689097803,0.36727,2721.9,2721.8,3.2078]
[1724689098407,0.36728,2721.8,2721.7,0.36729]
[1724689098710,0.36728,2721.8,2721.4,3.2078]
[1724689098711,0.36732,2721.5,2721.4,3.2078]
[1724689098910,0.91824,2721.7,2721.0,7.8708]
[1724689098911,0.36734,2721.4,2721.0,7.8708]
[1724689099213,0.36735,2721.3,2721.1,0.36737]
[1724689099510,0.36734,2721.4,2721.2,0.36736]
[1724689100405,1.7805,2721.3,2721.2,0.36736]
[1724689100604,1.7805,2721.3,2721.0,3.7968]
[1724689100903,0.36741,2720.9,2720.7,4.074]
[1724689101106,0.36741,2720.9,2720.7,4.44143]
[1724689101708,7.60876123,2721.2,2720.7,4.074]
[1724689101917,2.88625123,2721.1,2720.7,4.074]
[1724689102105,9.00289607,2721.1,2721.0,0.36739]
[1724689103721,2.88625123,2721.4,2721.2,0.36736]
[1724689104017,2.88625123,2721.5,2720.9,5.0424]
[1724689104518,2.88625123,2721.5,2721.3,0.36734]
[1724689104718,8.70396123,2721.6,2721.4,3.6593]
[1724689104915,8.33665123,2721.6,2721.4,3.6593]
[1724689106320,8.33665123,2721.6,2721.4,4.02662]
[1724689106517,8.33665123,2721.6,2721.4,4.02663]
[1724689107219,5.4504,2721.6,2721.4,3.6593]
[1724689107416,5.4504,2721.6,2721.4,4.02663]
[1724689108321,5.4504,2721.6,2721.5,0.36732]
[1724689108519,5.4504,2721.6,2721.4,4.02663]
[1724689110338,5.4504,2721.6,2721.4,3.6593]
[1724689110517,5.4504,2721.6,2721.4,4.02662]
[1724689111616,5.81771,2721.6,2721.4,1.8346]
[1724689111924,5.4504,2721.6,2721.4,2.20194]
[1724689112125,5.4504,2721.6,2721.4,0.36734]
[1724689112627,0.36733,2721.5,2721.2,2.29056]
[1724689113017,5.81772,2721.6,2721.3,0.36735]
[1724689114120,5.4504,2721.6,2721.4,0.36732]
[1724689114321,5.4504,2721.6,2721.4,0.36734]
[1724689114629,5.4504,2721.6,2721.5,0.36732]
[1724689114925,5.4504,2721.6,2721.4,0.36733]
[1724689115426,5.4504,2721.6,2721.5,0.36732]
[1724689115621,3.25355123,2721.7,2721.5,0.36732]
[1724689115831,6.90765123,2721.7,2721.4,0.36733]
[1724689116032,6.90765123,2721.7,2721.5,1.68732]
[1724689116327,6.90765123,2721.7,2721.5,1.32]
[1724689116526,6.90765123,2721.7,2721.5,1.68732]
[1724689116715,6.90765123,2721.7,2721.5,1.32]
[1724689116716,0.36731,2721.6,2721.5,1.32]
[1724689116917,6.90766123,2721.7,2721.5,1.32]
[1724689117229,6.54035123,2721.7,2721.5,1.32]
[1724689117719,0.36731,2721.6,2721.5,1.32]
[1724689118520,0.36732,2721.5,2721.3,1.68734]
[1724689118718,1.9229,2721.4,2721.2,1.32]
[1724689118912,3.61024,2721.4,2721.1,0.36738]
[1724689119117,1.8815,2721.3,2721.1,0.36738]
[1724689119319,1.8815,2721.3,2721.2,0.36736]
[1724689119520,1.8815,2721.3,2721.2,1.68736]
[1724689119723,1.9229,2721.4,2721.3,0.36735]
[1724689120021,0.36732,2721.5,2721.3,1.68735]
[1724689120726,0.36732,2721.5,2721.4,0.36734]
[1724689121531,0.36732,2721.5,2721.3,1.68734]
[1724689121918,0.36732,2721.5,2721.4,0.36734]
[1724689122426,0.36732,2721.5,2721.3,1.68734]
[1724689122723,12.82775223,2721.6,2721.2,1.32]
[1724689122724,15.06604223,2721.6,2721.2,1.32]
[1724689122931,1.32,2721.3,2721.0,5.394]
[1724689123134,1.32,2721.1,2721.0,4.44139]
[1724689123422,4.13457,2721.2,2721.1,0.36738]
[1724689123423,5.45457,2721.2,2721.1,0.36738]
[1724689123629,3.7672,2721.2,2721.1,0.36738]
[1724689125533,2.88625123,2721.4,2721.3,0.36735]
[1724689125732,2.88625123,2721.4,2721.1,1.32]
[1724689125733,0.36734,2721.4,2721.1,3.2037]
[1724689125918,9.59019002,2721.3,2721.2,0.36736]
[1724689126120,1.68735,2721.3,2721.2,0.36736]
[1724689126323,1.32,2721.3,2721.0,5.394]
[1724689126629,1.32,2721.3,2721.1,0.36738]
[1724689126840,1.32,2721.3,2721.2,0.36736]
[1724689127132,8.29018123,2721.5,2721.3,0.36735]
[1724689127432,9.38820929,2721.4,2721.3,0.36735]
[1724689128321,9.38820929,2721.4,2721.2,1.68735]
[1724689129029,9.38820929,2721.4,2721.3,0.36735]
[1724689129626,9.75554929,2721.4,2721.2,1.68735]
[1724689130619,0.36735,2721.3,2721.1,3.56297]
[1724689130822,1.68735,2721.3,2721.1,1.68737]
[1724689131022,1.32,2721.3,2721.2,0.36736]
[1724689131231,4.9944,2721.3,2721.2,0.36736]
[1724689131434,5.36175,2721.3,2721.1,1.68737]
[1724689131637,1.32,2721.3,2721.1,1.68737]
[1724689132223,1.68735,2721.3,2721.1,1.68737]
[1724689133138,1.32,2721.3,2721.2,0.36736]
[1724689133435,4.9944,2721.3,2721.2,0.36736]
[1724689133625,3.6744,2721.3,2721.1,1.68737]
[1724689133930,1.32,2721.2,2720.9,3.2078]
[1724689134227,1.68739,2721.0,2720.9,3.2078]
[1724689134430,5.36259,2721.0,2720.9,3.2078]
[1724689134632,7.12269,2721.0,2720.9,3.2078]
[1724689135632,0.36742,2720.8,2720.7,5.394]
[1724689135929,0.36743,2720.7,2720.6,0.00936333]
[1724689136125,1.7782,2720.7,2720.6,0.37680333]
[1724689136332,2.14563,2720.7,2720.6,0.00936333]
[1724689136724,1.7782,2720.7,2720.6,0.37680333]
[1724689137836,2.14563,2720.7,2720.6,0.37680333]
[1724689139133,2.14563,2720.7,2720.6,0.00936333]
[1724689139831,8.05941,2720.7,2720.6,0.00936333]
[1724689140033,0.91865,2720.5,2719.9,14.1358]
[1724689140232,1.32,2720.2,2719.9,8.6018]
[1724689140536,3.6233,2720.1,2720.0,1.68752]
[1724689140742,3.6233,2720.1,2719.9,3.2078]
[1724689140743,4.9433,2720.1,2719.9,3.2078]
[1724689141039,0.36754,2719.9,2719.7,3.59826721]
[1724689141238,4.94747194,2720.1,2719.8,1.32]
[1724689141239,0.36753,2720.0,2719.8,1.32]
[1724689141429,1.9179,2719.9,2719.8,1.32]
[1724689141940,1.9179,2719.9,2719.8,1.68755]
[1724689142126,1.9179,2719.9,2719.8,0.36755]
[1724689142328,1.9179,2719.9,2719.7,1.91522175]
[1724689142532,1.9179,2719.9,2719.7,0.01002175]
[1724689142533,2.28544,2719.9,2719.7,0.01002175]
[1724689142733,0.36755,2719.8,2719.7,0.01002175]
[1724689143141,2.28544,2719.9,2719.7,0.01002175]
[1724689143534,1.9179,2719.9,2719.7,0.37758175]
[1724689144337,3.88505632,2720.1,2719.7,0.37758175]
[1724689144338,3.88505632,2720.1,2719.8,0.36755]
[1724689144535,0.26175632,2720.1,2719.9,0.36753]
[1724689144733,0.00417194,2720.1,2719.9,3.7234]
[1724689144927,0.00417194,2720.1,2720.0,0.36752]
[1724689145933,0.00417194,2720.1,2720.0,4.04432]
[1724689146427,0.00417194,2720.1,2719.8,2.14724]
[1724689146734,3.65857194,2720.1,2719.8,2.14724]
[1724689146935,1.8003,2720.0,2719.8,2.14724]
[1724689147328,1.8003,2720.0,2719.9,0.36754]
[1724689147628,1.82407194,2720.1,2720.0,0.36752]
[1724689147847,0.00417194,2720.1,2719.9,0.36753]
[1724689148141,0.00417194,2720.1,2719.8,2.14724]
[1724689148334,0.37168194,2720.1,2719.8,1.7797]
[1724689148539,0.37168194,2720.1,2719.8,2.14725]
[1724689149637,0.36754,2719.9,2719.8,1.7797]
[1724689149937,0.92297194,2720.1,2719.7,0.01002175]
[1724689150146,2.26985,2719.8,2719.7,0.01002175]
[1724689150641,3.18874,2719.8,2719.7,0.01002175]
[1724689151332,13.7654502,2719.8,2719.4,1.9079]
[1724689151532,0.36759,2719.6,2719.4,1.9079]
[1724689152040,1.7938,2719.5,2719.4,1.9079]
[1724689152228,1.7938,2719.5,2719.4,0.00319518]
[1724689153332,1.7938,2719.5,2719.4,0.37080518]
[1724689153533,1.7938,2719.5,2719.4,0.00319518]
[1724689153841,4.27657127,2719.8,2719.5,0.36759]
[1724689154143,8.99831283,2719.7,2719.6,3.5354]
[1724689155433,9.36587283,2719.7,2719.6,3.5354]
[1724689155635,8.99831283,2719.7,2719.6,3.5354]
[1724689156843,9.36587283,2719.7,2719.6,3.5354]
[1724689157345,8.99831283,2719.7,2719.6,3.5354]
[1724689157743,9.36588283,2719.7,2719.4,0.37079518]
[1724689158350,0.36759,2719.5,2719.4,0.00319518]
[1724689159940,8.99831283,2719.7,2719.4,0.00319518]
[1724689160134,8.99831283,2719.7,2719.5,0.36758]
[1724689160338,8.99831283,2719.7,2719.5,0.36759]
[1724689164146,8.99831283,2719.7,2719.6,0.36758]
[1724689164347,1.7521,2719.9,2719.7,0.36755]
[1724689164542,1.7521,2719.9,2719.8,1.7781]
[1724689164938,2.11964,2719.9,2719.8,1.7781]
[1724689165150,5.79644,2719.9,2719.6,3.57537]
[1724689165448,2.11964,2719.9,2719.6,3.57537]
[1724689165643,1.7521,2719.9,2719.6,3.2078]
[1724689165850,1.28648,2719.7,2719.6,3.2078]
[1724689166058,0.36759,2719.5,2719.4,0.00319518]
[1724689166255,1.28658,2719.5,2719.4,0.00319518]
[1724689166755,3.01978,2719.5,2719.4,0.00319518]
[1724689167053,8.55378,2719.5,2719.4,0.00319518]
[1724689167246,0.36763,2719.2,2719.0,4.074]
[1724689167453,3.6296,2719.1,2718.9,7.26266]
[1724689168150,3.6296,2719.1,2718.9,7.26609174]
[1724689168342,3.99725,2719.1,2718.9,7.26609174]
[1724689168546,3.99725,2719.1,2718.9,6.89843174]
[1724689168757,1.7332,2719.0,2718.9,7.26610174]
[1724689169454,2.10086,2719.0,2718.9,7.26610174]
[1724689169654,2.10086,2719.0,2718.9,5.43250174]
[1724689169859,2.10086,2719.0,2718.9,5.06483174]
[1724689170161,3.02002,2719.0,2718.9,3.21123174]
[1724689170367,3.02002,2719.0,2718.9,0.00343174]
[1724689171160,2.10086,2719.0,2718.9,0.00343174]
[1724689174465,1.7332,2719.0,2718.9,0.00343174]
[1724689174672,2.10086,2719.0,2718.9,0.00343174]
[1724689175973,5.77846,2719.0,2718.9,0.00343174]
[1724689176968,0.9192,2718.9,2718.3,5.9684]
[1724689177168,0.3677,2718.8,2718.5,0.36772]
[1724689177668,1.8644,2718.7,2718.5,0.36772]
[1724689177866,1.8644,2718.7,2718.5,0.37182696]
[1724689178468,1.8644,2718.7,2718.6,0.36771]
[1724689179363,1.8644,2718.7,2718.5,0.00410696]
[1724689179364,1.8644,2718.7,2718.5,0.37182696]
[1724689179966,1.8644,2718.7,2718.6,0.36771]
[1724689180271,2.2321,2718.7,2718.5,0.00410696]
[1724689180460,1.9026,2718.6,2718.5,0.00410696]
[1724689180667,2.27031,2718.6,2718.5,0.00410696]
[1724689181570,1.9026,2718.6,2718.5,0.00410696]
[1724689181870,1.9026,2718.6,2718.5,0.37183696]
[1724689182872,1.9026,2718.6,2718.5,0.00410696]
[1724689183865,2.27031,2718.6,2718.5,0.00410696]
[1724689184467,1.9026,2718.6,2718.5,0.00410696]
[1724689185369,2.27031,2718.6,2718.5,0.00410696]
[1724689185571,1.9026,2718.6,2718.5,0.00410696]
[1724689185974,3.7988,2718.6,2718.5,0.00410696]
[1724689186574,4.16651,2718.6,2718.5,0.00410696]
[1724689187687,7.84491,2718.6,2718.5,0.00410696]
[1724689188074,5.1188,2718.6,2718.5,0.37183696]
[1724689188379,5.1188,2718.6,2718.5,0.00410696]
[1724689188579,5.48651,2718.6,2718.5,0.00410696]
[1724689188780,5.1188,2718.6,2718.5,0.00410696]
[1724689188976,5.48651,2718.6,2718.5,0.00410696]
[1724689189683,5.1188,2718.6,2718.5,0.00410696]
[1724689189885,5.48651,2718.6,2718.5,0.00410696]
[1724689193283,5.1188,2718.6,2718.5,0.00410696]
[1724689193687,5.48651,2718.6,2718.5,0.00410696]
[1724689195883,5.1188,2718.6,2718.5,0.00410696]
[1724689196077,5.48651,2718.6,2718.5,0.00410696]
[1724689196284,3.2162,2718.6,2718.5,0.37183696]
[1724689196484,1.8962,2718.6,2718.5,0.37183696]
[1724689196686,1.8644,2718.7,2718.5,0.00410696]
[1724689196879,1.8644,2718.7,2718.5,2.19652696]
[1724689197079,9.05512303,2718.6,2718.5,2.19652696]
[1724689197786,9.42283303,2718.6,2718.5,1.82880696]
[1724689198089,9.42283303,2718.6,2718.5,0.00410696]
[1724689198090,10.74283303,2718.6,2718.5,0.00410696]
[1724689198285,12.56083303,2718.6,2718.5,0.00410696]
[1724689199588,12.56083303,2718.6,2718.5,1e-08]
[1724689199977,9.05512303,2718.6,2718.5,1.68773001]
[1724689200684,9.05512303,2718.6,2718.5,0.36773001]
[1724689201289,10.74283303,2718.6,2718.5,1e-08]
[1724689201491,12.65873303,2718.6,2718.5,1e-08]
[1724689201989,12.29102303,2718.6,2718.5,1e-08]
[1724689203190,12.65873303,2718.6,2718.5,1e-08]
[1724689206188,12.65873303,2718.6,2718.2,4.5278]
[1724689206189,0.36775,2718.4,2718.2,3.2078]
[1724689206382,2.18005,2718.3,2718.1,0.36777]
[1724689206594,1.32,2718.2,2718.1,0.36777]
[1724689207197,1.32,2718.2,2718.1,0.37116986]
[1724689207397,1.68777,2718.2,2718.1,0.37116986]
[1724689207591,3.1579,2718.2,2718.1,0.37116986]
[1724689207789,3.52567,2718.2,2718.1,0.00339986]
[1724689207995,4.4451,2718.2,2718.1,0.00339986]
[1724689208487,3.52567,2718.2,2718.1,0.00339986]
[1724689209199,3.5542,2718.3,2718.1,1.32339986]
[1724689209493,3.5542,2718.3,2718.2,1.7745]
[1724689209698,2.88625123,2718.5,2718.2,3.0945]
[1724689209887,3.1425065,2718.8,2718.4,3.2078]
[1724689210083,0.25625527,2718.8,2718.7,1.32]
[1724689210298,9.40067215,2718.7,2718.6,1.68771]
[1724689210488,9.40067215,2718.8,2718.6,1.68771]
[1724689210695,2.89176867,2718.9,2718.6,1.68771]
[1724689210892,3.15196462,2718.9,2718.7,3.7931]
[1724689211088,9.34906618,2718.8,2718.7,3.7931]
[1724689211290,0.00551744,2718.9,2718.8,0.36769]
[1724689211491,0.00551744,2718.9,2718.8,1.68769]
[1724689212099,0.00551744,2718.9,2718.8,0.36769]
[1724689213001,0.00551744,2718.9,2718.7,3.7931]
[1724689213194,0.00551744,2718.9,2718.4,3.2078]
[1724689213500,0.3677,2718.7,2718.4,4.987]
[1724689213704,15.00784448,2718.8,2718.2,4.074]
[1724689213894,2.88625123,2718.5,2718.1,0.00339986]
[1724689214092,8.74200123,2718.4,2718.1,0.00339986]
[1724689214292,17.74580448,2718.4,2718.1,0.00339986]
[1724689214504,8.74199123,2718.4,2718.1,0.00339986]
[1724689215903,2.88625123,2718.3,2718.1,0.37117986]
[1724689216495,3.25401123,2718.3,2718.1,0.00339986]
[1724689216696,0.36777,2718.2,2718.1,0.00339986]
[1724689216909,9.37956037,2718.2,2718.1,0.00339986]
[1724689217505,13.05876037,2718.2,2718.1,0.00339986]
[1724689221307,0.36784,2717.7,2717.6,3.2078]
[1724689221501,4.04784,2717.7,2717.1,5.8584]
[1724689221696,1.9069,2717.6,2717.2,1.8223]
[1724689221903,1.8002,2717.9,2717.7,0.36783]
[1724689222106,9.34407083,2717.8,2717.7,0.36783]
[1724689222302,0.0044899,2717.8,2717.7,0.37081163]
[1724689222913,2.89565941,2717.8,2717.7,0.37081163]
[1724689224207,0.0044899,2717.8,2717.7,0.37081163]
[1724689224413,2.89565941,2717.8,2717.7,0.00297163]
[1724689224613,4.63825941,2717.8,2717.7,0.37081163]
[1724689224807,1.7470899,2717.8,2717.7,0.37081163]
[1724689225308,4.63825941,2717.8,2717.7,0.37081163]
[1724689225502,1.7470899,2717.8,2717.7,0.37081163]
[1724689225808,1.7470899,2717.8,2717.7,0.00297163]
[1724689226202,1.7470899,2717.8,2717.7,0.37081163]
[1724689226397,0.0044899,2717.8,2717.7,0.37081163]
[1724689226617,0.0044899,2717.8,2717.7,9.05001163]
[1724689227006,0.0044899,2717.8,2717.7,7.75751163]
[1724689227409,0.0044899,2717.8,2717.7,4.07831163]
[1724689227709,0.0044899,2717.8,2717.7,12.75751163]
[1724689229300,0.0044899,2717.8,2717.7,13.67711163]
[1724689229906,0.0044899,2717.8,2717.7,12.75751163]
[1724689230511,0.0044899,2717.8,2717.7,7.75751163]
[1724689231417,0.0044899,2717.8,2717.7,10.96531163]
[1724689231620,0.0044899,2717.8,2717.7,11.88491163]
[1724689231826,0.0044899,2717.8,2717.7,16.88491163]
[1724689232323,0.0039,2718.2,2718.1,0.36778]
[1724689232517,0.0039,2718.2,2718.1,4.04698]
[1724689233124,0.37167,2718.2,2718.0,1.8316]
[1724689233324,5.87641687,2718.2,2718.0,1.8316]
[1724689233523,0.36778,2718.1,2717.9,0.3678]
[1724689233721,6.42808687,2718.2,2717.8,0.36782]
[1724689233926,0.3678,2718.0,2717.8,0.36782]
[1724689234144,0.3678,2718.0,2717.9,0.36781]
[1724689234431,9.48348986,2718.1,2717.9,0.3678]
[1724689235032,9.48348986,2718.1,2718.0,0.36779]
[1724689235228,9.11569986,2718.1,2718.0,0.36779]
[1724689235533,0.00714687,2718.2,2718.1,0.36778]
[1724689235723,0.00714687,2718.2,2718.1,5.84978]
[1724689236737,0.00227345,2718.2,2718.1,19.0765]
[1724689236924,3.37854853,2718.9,2718.8,0.36769]
[1724689236925,0.00551744,2718.9,2718.8,0.36769]
[1724689237125,0.00551744,2718.9,2718.8,4.46691]
[1724689237326,3.37303109,2719.7,2719.6,0.36758]
[1724689237529,8.19005894,2719.9,2719.7,0.36757]
[1724689237530,3.37303109,2719.9,2719.7,0.36757]
[1724689237832,7.60559268,2720.0,2719.7,0.00396374]
[1724689237833,3.21101995,2719.8,2719.7,0.00396374]
[1724689238337,0.00321995,2719.8,2719.7,0.00396374]
[1724689240434,0.00321995,2719.8,2719.7,12.25613374]
[1724689240837,0.00551744,2720.0,2719.9,3.54754]
[1724689241035,0.00551744,2720.0,2719.9,12.22434]
[1724689241338,1.8679,2721.1,2720.5,0.36745]
[1724689241633,1.8679,2721.1,2719.7,5.06116374]
[1724689241634,9.21688722,2721.0,2720.4,0.36746]
[1724689241841,9.21688722,2721.0,2720.4,0.36747]
[1724689242035,9.21688722,2721.0,2720.3,7.62148]
[1724689242235,9.21688722,2721.0,2720.3,7.254]
[1724689242443,0.00551744,2720.9,2720.3,7.62148]
[1724689242630,0.00551744,2720.9,2720.3,4.074]
[1724689242936,0.00551744,2720.9,2720.3,7.254]
[1724689243142,0.00551744,2720.9,2720.6,0.36744]
[1724689243442,0.00551744,2720.9,2720.4,1.8556]
[1724689243834,0.00551744,2720.9,2720.6,0.36743]
[1724689244230,0.00551744,2720.9,2720.7,0.36742]
[1724689244425,0.00551744,2720.9,2720.8,0.36742]
[1724689244833,0.00551744,2720.9,2720.8,9.04262]
[1724689245531,0.00551744,2720.9,2720.8,8.6752]
[1724689245738,0.00551744,2720.9,2720.8,3.6752]
[1724689246237,0.00551744,2720.9,2720.5,1.758]
[1724689246535,0.00551744,2720.9,2718.0,7.05132462]
[1724689246536,9.07880393,2720.8,2720.0,10.928]
[1724689246746,9.07880393,2720.8,2720.0,11.29552]
[1724689246934,0.36745,2720.6,2720.0,11.29552]
[1724689247236,9.07880393,2720.8,2720.0,10.928]
[1724689247237,0.36744,2720.7,2720.0,10.928]
[1724689247440,0.36744,2720.7,2720.2,0.36749]
[1724689247636,9.44622393,2720.8,2720.3,0.36748]
[1724689248236,9.07880393,2720.8,2720.0,10.928]
[1724689248437,0.36744,2720.7,2720.0,10.928]
[1724689248739,9.44622393,2720.8,2720.3,0.36748]
[1724689248937,0.36743,2720.7,2720.3,0.36748]
[1724689249335,0.36743,2720.7,2720.2,0.36749]
[1724689249638,0.36743,2720.7,2720.3,0.36748]
[1724689249940,0.36745,2720.6,2720.2,0.36749]
[1724689250132,0.36745,2720.6,2720.2,0.3675]
[1724689250544,1.7638,2720.5,2720.1,0.3675]
[1724689250730,1.7638,2720.5,2720.2,0.36749]
[1724689250938,1.7638,2720.5,2720.3,0.36748]
[1724689252741,1.7442,2720.7,2720.4,0.36747]
[1724689252946,1.7442,2720.7,2720.5,0.36745]
[1724689254038,1.7442,2720.7,2720.6,0.36744]
[1724689255038,1.7442,2720.7,2720.5,0.36745]
[1724689255233,1.7442,2720.7,2720.1,3.18]
[1724689255743,2.11163,2720.7,2720.1,3.18]
[1724689256044,2.6628,2720.7,2720.1,0.3675]
[1724689256240,0.36747,2720.4,2720.1,0.3675]
[1724689256751,0.36749,2720.3,2720.0,4.44152]
[1724689256949,0.36751,2720.2,2719.7,7.28576374]
[1724689257245,2.18251,2720.2,2720.0,0.36752]
[1724689257450,1.815,2720.2,2719.7,7.28576374]
[1724689257638,1.815,2720.2,2719.7,10.46576374]
[1724689257838,1.815,2720.2,2720.0,0.36752]
[1724689258451,0.36751,2720.1,2720.0,0.36752]
[1724689258752,2.18251,2720.2,2720.0,0.36752]
[1724689259049,0.36753,2720.0,2719.7,10.46576374]
[1724689259250,0.36753,2720.0,2719.8,0.36755]
[1724689259958,2.73376,2720.2,2719.7,7.28576374]
[1724689260142,0.36753,2720.0,2719.8,0.36755]
[1724689260342,0.36752,2720.1,2719.9,0.36754]
[1724689260537,0.36751,2720.1,2719.9,0.36753]
[1724689260742,1.815,2720.2,2719.9,0.36753]
[1724689261048,0.36751,2720.1,2719.9,0.36753]
[1724689261246,2.18251,2720.2,2719.9,0.36753]
[1724689261442,2.1825,2720.2,2719.9,0.36753]
[1724689261641,2.1825,2720.2,2720.0,0.36752]
[1724689261842,2.1825,2720.2,2719.9,0.36753]
[1724689261843,0.36751,2720.1,2719.9,0.36753]
[1724689262140,1.815,2720.2,2719.9,0.36753]
[1724689262454,2.1825,2720.2,2720.0,0.36752]
[1724689262649,1.815,2720.2,2720.1,0.36751]
[1724689263352,0.36748,2720.4,2720.1,0.3675]
[1724689263750,9.64892061,2720.4,2720.1,0.3675]
[1724689263949,0.36748,2720.4,2720.1,0.3675]
[1724689264258,9.05427623,2720.3,2720.1,0.3675]
[1724689264437,9.05427623,2720.3,2720.2,0.3675]
[1724689264640,1.7473,2720.6,2720.5,0.36746]
[1724689264837,1.7442,2720.7,2720.6,0.36744]
[1724689265141,0.00551744,2720.9,2720.6,0.36743]
[1724689265345,0.00551744,2720.9,2720.8,0.36742]
[1724689265849,0.00551744,2720.9,2720.7,3.57522]
[1724689266038,0.00551744,2720.9,2720.7,3.2078]
[1724689266039,0.37292744,2720.9,2720.7,3.2078]
[1724689266244,0.00551744,2720.9,2720.4,3.18]
[1724689266445,0.37292744,2720.9,2720.6,0.36744]
[1724689266643,0.00551744,2720.9,2720.6,40.8]
[1724689267253,0.36742,2720.8,2720.6,40.8]
[1724689267450,0.36742,2720.8,2720.5,0.36745]
[1724689270059,0.36742,2720.8,2720.3,7.64928]
[1724689270060,0.36745,2720.6,2720.3,7.64928]
[1724689270357,1.7452,2720.5,2720.4,0.36747]
[1724689270544,9.16950249,2720.7,2720.6,0.36744]
[1724689270745,0.36742,2720.8,2720.6,0.36744]
[1724689270942,1.78781744,2720.9,2720.3,3.2078]
[1724689271146,9.35818734,2720.8,2720.6,0.36743]
[1724689271342,9.72560734,2720.8,2720.6,0.36743]
[1724689271649,9.35818734,2720.8,2720.7,0.36743]
[1724689271853,1.78781744,2720.9,2720.7,0.36743]
[1724689272155,1.78781744,2720.9,2720.6,0.36744]
[1724689272348,0.36742,2720.8,2720.6,0.36744]
[1724689272955,2.15522744,2720.9,2720.6,0.36744]
[1724689273149,0.36742,2720.8,2720.6,0.36744]
[1724689273855,1.78781744,2720.9,2720.7,0.36743]
[1724689274045,1.78781744,2720.9,2720.4,0.91867]
[1724689274246,1.78781744,2720.9,2720.8,0.36742]
[1724689274450,2.15521744,2720.9,2720.7,0.36742]
[1724689274850,1.78781744,2720.9,2720.7,0.36742]
[1724689275349,2.15522744,2720.9,2720.7,0.36742]
[1724689276043,0.00551744,2720.9,2720.7,0.36742]
[1724689276248,1.76621744,2720.9,2720.8,0.36742]
[1724689276451,0.00551744,2720.9,2720.8,1.28597]
[1724689276659,0.00551744,2720.9,2720.8,7.80772]
[1724689276854,0.00551744,2720.9,2720.8,4.13252]
[1724689277746,0.00551744,2720.9,2720.8,11.90627]
[1724689277949,0.00551744,2720.9,2720.8,17.82482]
[1724689278150,0.00551744,2720.9,2720.8,19.58132]
[1724689278345,0.00551744,2720.9,2720.8,15.90612]
[1724689278656,0.00551744,2720.9,2720.8,19.58132]
[1724689281253,0.00551744,2720.9,2720.8,60.38132]
[1724689283050,0.00551744,2720.9,2720.8,59.46277]
[1724689283250,0.00551744,2720.9,2720.8,58.54422]
[1724689283461,0.00551744,2720.9,2720.8,4.13252]
[1724689283764,0.00551744,2720.9,2720.8,11.90627]
[1724689284064,0.00551744,2720.9,2720.8,16.90627]
[1724689284359,0.00551744,2720.9,2720.8,17.82482]
[1724689285957,0.00551744,2720.9,2720.8,10.98772]
[1724689286455,0.00551744,2720.9,2720.8,11.90627]
[1724689287559,0.00551744,2720.9,2720.8,10.98772]
[1724689287758,0.00551744,2720.9,2720.8,11.90627]